{"text_format":"1","workbook":"xlsx","n_sheets":8,"sheets":["Prijavni obrazec za šolo","programi","vlagatelji","banke","furs","copyrowentry","report","izpis"],"not_rendered":{"charts":0,"images":4,"macros":1,"external_links":0,"defined_names":3,"comments":0,"pivot_tables":0},"unopened":[],"bounds":{"document_bytes":16777216,"sheet_cells":100000,"rows_first":2000,"rows_last":500,"rows_between":2000,"halvings":0,"cell_chars":16384,"cell_head_chars":4096},"cells_cut":0,"cells_raw":0,"read":"whole","date_system":"1900"}

{"sheet":"Prijavni obrazec za šolo","index":0,"n_rows":124,"n_cols":53,"rows_kept":124,"cut":false,"hidden":false,"merged":[[38,7,38,9],[38,10,39,10],[38,11,39,11],[41,1,42,1],[41,2,42,2],[38,6,39,6],[29,1,29,5],[24,1,24,5],[10,2,10,3],[11,0,11,1],[12,0,12,1],[41,0,42,0],[17,0,17,5],[6,0,6,5],[7,0,7,5],[38,0,39,0],[38,2,39,2],[38,3,39,3],[38,4,39,4],[38,5,39,5],[8,0,8,5],[13,0,13,3],[14,0,14,3],[19,0,19,3],[20,0,20,3],[21,0,21,1],[22,0,22,1],[9,2,9,3],[124,9,124,12],[38,1,39,1],[15,1,15,2],[16,1,16,2],[15,4,15,5],[16,4,16,5],[27,1,27,3],[28,1,28,3],[25,1,25,2],[25,4,25,5],[37,0,37,5],[63,4,63,5],[62,4,62,5],[64,4,64,5],[66,0,66,5],[61,0,61,1],[62,0,62,1],[63,0,63,1],[64,0,64,1],[62,2,63,3],[69,0,69,5],[46,0,46,5],[32,0,32,5],[33,0,33,5],[34,0,34,5],[35,0,35,5],[48,1,48,5],[49,1,49,5],[50,1,50,5],[51,1,51,5],[52,1,52,5],[53,1,53,5],[54,1,54,5],[55,1,55,5],[56,1,56,5],[61,4,61,5],[3,0,3,5],[0,0,0,5],[1,0,1,5],[2,0,2,5],[5,0,5,5],[83,0,83,1],[83,2,84,3],[83,4,83,5],[84,0,84,1],[84,4,84,5],[3,7,3,15],[123,3,126,4],[104,0,104,5],[110,1,116,3],[120,1,120,2],[119,1,119,2],[118,1,118,2],[85,0,85,1],[85,4,85,5],[98,0,98,5],[100,0,100,5],[102,0,102,5],[70,1,70,5],[71,1,71,5],[82,0,82,1],[82,4,82,5]]}
["SKLOP B",null,null,null,null,null,null,{"$f":"IF(L15=\"\",\"\",\"Spodaj so z rdečo izpisani opisi morebitnih napak pri vnosu podatkov o vlagatelju: \")","v":""},null,null,null,null,null,null,null,null,null,null,null,null,{"$f":"ROW(A40)","v":40},1,"N","O","D","E",null,null,"P","G","H","I","J","K","AI","AJ","AK",null,null,null,null,"AP","AQ","AR"]
["3.1 PRIJAVNI OBRAZEC ZA ŠOLO",null,null,null,null,null,null,null,null,null,null,null,null,null,null,null,null,null,null,null,null,{"$f":"U1+1","v":41},{"$f":"W$1&$V2","v":"N41"},{"$f":"X$1&$V2","v":"O41"},"D41","E41",null,null,{"$f":"AC$1&$V2","v":"P41"},"G41","H41","I41","J41","K41","AI41","AJ41","AK41",null,null,null,null,{"$f":"AP$1&$V2","v":"AP41"},"AQ41","AR41"]
["JR PUD 2019/2020",null,null,null,null,null,null,null,null,null,null,null,null,null,null,null,null,null,null,null,null,{"$f":"U1+V1","v":41},{"$f":"W$1&$V3","v":"N41"},"O41","D41","E41",null,null,"P41","G41","H41","I41","J41","K41","AI41","AJ41","AK41",null,null,null,null,"AP41","AQ41","AR41"]
["Podatki o šoli",null,null,null,null,null,null,"Za pravilen izpis tega obrazca uporabite ukaz \"Natisni\" na koncu obrazca. \nOblika obrazca v tem delovnem listu je samo uporabniški vmesnik in ni namenjena za tisk.  "]
[]
[null,null,null,null,null,null,null,{"$f":"IF(TRIM(CLEAN(A6))=\"\",\"Vlagatelja izberite s spustnega seznama. \",\"\")","v":"Vlagatelja izberite s spustnega seznama. "}]
["Uradni naziv vlagatelja (šole ali šolskega centra)",null,null,null,null,null,"naziv",{"$f":"IF(AND(H6=\"\",COUNTIF(vlagatelji!A:A,A6)=0),\"Napačen naziv vlagatelja ali neupravičen vlagatelj. Vpisati je potrebno uradni polni naziv vlagatelja. \",\"\")","v":""}]
[]
["Ulica in hišna številka"]
[]
["Poštna številka",null,"Kraj",null,null,null,"dolžina matične",{"$f":"IF(AND(LEN(TRIM(CLEAN(A12)))>0,ISNUMBER(A12),OR(LEN(H15)<7,LEN(H15)>10)),\"Napačna dolžina matične številke vlagatelja. \",\"\")","v":""}]
[null,null,null,null,null,null,"napačna matična",{"$f":"IF(AND(A12<>\"\",H11=\"\",COUNTIF(vlagatelji!B:B,LEFT(H15,7))=0),\"Napačna matična številka vlagatelja ali neupravičen vlagatelj. \",\"\")","v":""}]
["Matična številka",null,null,"(SI) ","ID za DDV ali davčna številka",null,"napačna davčna",{"$f":"IF(AND(E12<>\"\",H14=\"\",COUNTIF(vlagatelji!C:C,J15)=0),\"Napačna davčna številka vlagatelja ali neupravičen vlagatelj. \",\"\")","v":""}]
[null,null,null,null,null,null,"dolžina davčne",{"$f":"IF(AND(LEN(TRIM(CLEAN(E12)))>0,J15<>0,LEN(J15)<>8),\"Napačna dolžina davčne številke vlagatelja. \",\"\")","v":""}]
["Ime in priimek zakonitega zastopnika",null,null,null,null,null,{"$f":"SUBSTITUTE(SUBSTITUTE(SUBSTITUTE(A12,\"-\",\"\"),\"–\",\"\"),\" \",\"\")","v":""},{"$f":"IF(ISNUMBER(VALUE(G15)),G15,0)","v":0},{"$f":"SUBSTITUTE(SUBSTITUTE(SUBSTITUTE(E12,\"-\",\"\"),\"–\",\"\"),\" \",\"\")","v":""},{"$f":"IF(ISNUMBER(VALUE(I15)),I15,0)","v":0},{"$f":"IF(AND(A12<>\"\",E12<>\"\",H11=\"\",H12=\"\",H14=\"\",COUNTIF(vlagatelji!C:C,E12)>0),VLOOKUP(A12,vlagatelji!B:C,2,0)-0,0)","v":0},{"$f":"H7&H11&H12&H13&H14&H16&H17&H18&H30","v":""}]
["SI 56",null,null,null,null,null,"napačen trr",{"$f":"IF(AND(TRIM(CLEAN(B16))<>\"\",H17=\"\",H18=\"\",98-(TRUNC(H19/100)*100-INT(TRUNC(H19/100)*100/97)*97)-RIGHT(H19,2)>0),\"Napačna številka TRR vlagatelja. \",\"\")","v":""}]
[null,"Številka TRR",null,null,"Banka vlagatelja oz. Uprava RS za javna plačila",null,"dolžina trr",{"$f":"IF(OR(LEN(TRIM(CLEAN(B16)))=0,LEN(G19)=15),\"\",\"Napačna dolžina številke TRR vlagatelja. \")","v":""}]
["Kontaktni podatki",null,null,null,null,null,"nedovoljeni znaki trr",{"$f":"IF(AND(TRIM(CLEAN(B16))<>\"\",H17=\"\",H19=0),\"Številka TRR vlagatelja vsebuje nedovoljene znake. \",\"\")","v":""}]
[null,null,null,null,null,null,{"$f":"SUBSTITUTE(SUBSTITUTE(SUBSTITUTE(SUBSTITUTE(SUBSTITUTE(TRIM(CLEAN(B16)),\"-\",\"\"),\"–\",\"\"),\" \",\"\"),\".\",\"\"),\",\",\"\")","v":""},{"$f":"IF(ISNUMBER(VALUE(G19)),G19,0)","v":0}]
[]
["Ime in priimek koordinatorja za PUD/PRI",null,null,null,null,"Tel. št. koordinatorja za PUD/PRI"]
[]
["Tel. št. šole"]
[]
[null,"Spoštujemo vašo pravico do zasebnosti in pregleda nad oddanimi podatki. E-poštni naslov bo Javni štipendijski, razvojni, invalidski in \npreživninski sklad Republike Slovenije uporabljal izključno za obveščanje o izvajanju programa »Povezava sistema poklicnega in \nstrokovnega izobraževanja s potrebami trga dela 2018-2022«."]
[null,"DOVOLIM uporabo e-poštnega naslova za \nobveščanje o izvajanju programa »Povezava \nsistema poklicnega in strokovnega izobraževanja \ns potrebami trga dela 2018-2022«",null,null,"NE DOVOLIM uporabe e-poštnega naslova za \nobveščanje o izvajanju programa »Povezava \nsistema poklicnega in strokovnega izobraževanja \ns potrebami trga dela 2018-2022«",null,null,{"$f":"IF(AA26=0,\"Izberite, ali želite, da vas obveščamo o izvajanju programa PUD 2018-2022. \",\"\")","v":"Izberite, ali želite, da vas obveščamo o izvajanju programa PUD 2018-2022. "},null,null,null,null,null,null,null,null,2,null,null,null,null,null,null,null,null,null,0]
[]
[null,null,null,null,null,null,null,{"$f":"IF(AND(TRIM(CLEAN(B28))=\"\",AA26=1),\"Vpišite elektronski naslov za obveščanje. \",\"\")","v":""}]
[null,"Elektronski naslov koordinatorja za PUD/PRI",null,null,null,null,null,{"$f":"IF(AA26=0,\"Ni podatka o tem, ali želite, da vas obveščamo o izvajanju programa PUD 2018-2022. \",\"\")","v":"Ni podatka o tem, ali želite, da vas obveščamo o izvajanju programa PUD 2018-2022. "}]
[null,"Vaše podatke lahko kadarkoli pregledate in zahtevate njihov popravek ali izbris oziroma prekličete osebno privolitev. To lahko \nstorite s sporočilom na e-naslov pud@sklad-kadri.si ali po telefonu 01 43 45 875.",null,null,null,null,null,{"$f":"IF(AND(AA26=1,TRIM(CLEAN(B28))=\"\"),\"Elektronski naslov za obveščanje ni vpisan. \",\"\")","v":""}]
[]
[]
["SEZNAM PRIJAVLJENIH OSEB"]
["Prijavljene osebe in delodajalce vpišite v seznam tako, da bodo urejeni po abecedi (po delodajalcih in po osebah)."]
["Za dodajanje prijavljenih oseb pritisnite gumb »Dodaj nov vnos za dijaka/študenta«. "]
["Če prijavljena oseba opravlja PUD/PRI pri več različnih delodajalcih, jo je potrebno vpisati večkrat, pri vsakem delodajalcu posebej."]
[]
["Podatki o dijakih oz. študentih"]
["Zap. št.","Ime dijaka/študenta","Priimek dijaka/študenta","EMŠO \ndijaka/študenta","Izobraževalni program","Naziv delodajalca","Matična številka delodajalca \n(oz. KMG-MID)","Število tednov PUD/PRI v letniku pri tem delodajalcu po pogodbi",null,null,"Skupaj predpisano število tednov po programu v vseh letnikih","Skupaj število tednov pri tem delodajalcu"]
[null,null,null,null,null,null,null,"1. letnik","2. letnik","3. letnik",null,null,null,"trim clean delodajalec","proper ime in priimek","emšo","vse napake skupaj","ali je EMŠO sploh številka","prazen emšo","formula za emšo","napačen EMŠO","dve osebi isti emšo","ista oseba razl. program","ni programa","napačen program","ista oseba dvakrat pri istem delod.",null,null,"matična delodajalca številka","ali je matična sploh številka","prazna matična","formula za matično","napačna matična ","šifra programa",{"$f":"CONCATENATE(\"Število različnih prijavljenih oseb (glede na EMŠO): \",ROUND(SUM(INDIRECT(AI2&\":\"&AI3)),0))","v":"Število različnih prijavljenih oseb (glede na EMŠO): 0"},{"$f":"CONCATENATE(\"Število različnih izobraževalnih programov: \",ROUND(SUM(INDIRECT(AJ2&\":\"&AJ3)),0))","v":"Število različnih izobraževalnih programov: 0"},{"$f":"CONCATENATE(\"Število različnih delodajalcev (glede na matično številko): \",ROUND(SUM(INDIRECT(AK2&\":\"&AK3)),0))","v":"Število različnih delodajalcev (glede na matično številko): 0"},"PUD isnumber","1 L","2 L","3 L","sum delodajalec","PREDP","SPI/VSŠ","predp. dolžina ni vpisana","NI v izpisu: razl. predp. dolžina za isti program","spi<3","vsš<8","predp. SPI<24","predp. VSŠ<20","delod.>predp.","manjka ime","manjka priimek"]
[{"$f":"ROW()-U$1","v":1},null,null,null,null,null,null,null,null,null,null,{"$f":"AP41","v":0},null,{"$f":"TRIM(CLEAN(F41))","v":""},{"$f":"PROPER(TRIM(CLEAN(SUBSTITUTE(SUBSTITUTE(\"x\"&B41&\" \"&C41,\"Ć\",\"Č\"),\"ć\",\"č\"))))","v":"X"},{"$f":"IF(ISNUMBER(VALUE(D41)),SUBSTITUTE(SUBSTITUTE(D41,\".\",\"\"),\",\",\"\"),\"\")","v":""},{"$f":"AZ41&BA41&R41&S41&U41&V41&W41&X41&Y41&Z41&AD41&AE41&AG41&AL41&AS41&AU41&AV41&AW41&AX41&AY41","v":"Manjka ime prijavljene osebe. \nManjka priimek prijavljene osebe. \nManjka EMŠO prijavljene osebe. \nManjka izobraževalni program. \nManjka matična številka delodajalca. \nManjka podatek \"Skupaj predpisano število tednov po programu v vseh letnikih\". \n"},{"$f":"IF(AND(LEN(D41)>0,D41<>P41),\"EMŠO prijavljene osebe vsebuje znake, ki niso številke: \"&D41&\" \n\",\"\")","v":""},{"$f":"IF(D41=\"\",\"Manjka EMŠO prijavljene osebe. \n\",\"\")","v":"Manjka EMŠO prijavljene osebe. \n"},{"$f":"IF(AND(LEN(D41)=13,R41=\"\"),RIGHT(D41,1)-MOD(11-MOD(LEFT(D41,1)*7+RIGHT(LEFT(D41,2),1)*6+RIGHT(LEFT(D41,3),1)*5+RIGHT(LEFT(D41,4),1)*4+RIGHT(LEFT(D41,5),1)*3+RIGHT(LEFT(D41,6),1)*2+RIGHT(LEFT(D41,7),1)*7+RIGHT(LEFT(D41,8),1)*6+RIGHT(LEFT(D41,9),1)*5+RIGHT(LEFT(D41,10),1)*4+RIGHT(LEFT(D41,11),1)*3+RIGHT(LEFT(D41,12),1)*2,11),11)=0,0)","v":0},{"$f":"IF(AND(R41=\"\",S41=\"\",NOT(T41)),\"Napačen EMŠO prijavljene osebe: \"&D41&\" \n\",\"\")","v":""},{"$f":"IF(AND(D41<>\"\",COUNTIFS(INDIRECT(X$2&\":\"&X$3),\"<>\"&O41,INDIRECT(Y$2&\":\"&Y$3),\"<>\",INDIRECT(Y$2&\":\"&Y$3),D41)>0),\"Za različne prijavljene osebe je vpisan isti EMŠO: \"&D41&\" \n\",\"\")","v":""},{"$f":"IF(AND(E41<>\"\",COUNTIFS(INDIRECT(Y$2&\":\"&Y$3),D41,INDIRECT(Z$2&\":\"&Z$3),\"<>\",INDIRECT(Z$2&\":\"&Z$3),\"<>\"&E41)>0),\"Za to prijavljeno osebo sta vpisana različna izobraževalna programa. \n\",\"\")","v":""},{"$f":"IF(E41=\"\",\"Manjka izobraževalni program. \n\",\"\")","v":"Manjka izobraževalni program. \n"},{"$f":"IF(AND(E41<>\"\",COUNTIF(programi!A:A,TRIM(CLEAN(E41)))=0),\"Napaka pri vnosu izobraževalnega programa. \n\",\"\")","v":""},{"$f":"IF(AND(D41<>\"\",COUNTIFS(INDIRECT(Y$2&\":\"&Y$3),D41,INDIRECT(AD$2&\":\"&AD$3),G41)>1),\"Ista oseba (EMŠO: \"&TRIM(CLEAN(D41))&\") je več kot enkrat navedena pri istem delodajalcu (\"&TRIM(CLEAN(N41))&\"). \n\",\"\")","v":""},null,null,{"$f":"IF(AND(G41<>\"\",ISNUMBER(VALUE(G41))),VALUE(SUBSTITUTE(SUBSTITUTE(G41,\".\",\"\"),\",\",\"\")),\"\")","v":""},{"$f":"IF(AND(G41<>\"\",TEXT(G41,\"#\")<>TEXT(AC41,\"#\")),\"Matična številka delodajalca vsebuje znake, ki niso številke: \"&TRIM(CLEAN(G41))&\"\n\",\"\")","v":""},{"$f":"IF(G41=\"\",\"Manjka matična številka delodajalca. \n\",\"\")","v":"Manjka matična številka delodajalca. \n"},{"$f":"IF(OR(AD41<>\"\",AE41<>\"\",AND(LEFT(G41,3)=\"100\",LEN(G41)=9)),\"\",(RIGHT(LEFT(G41,7),1)-MOD(11-MOD(LEFT(G41,1)*7+RIGHT(LEFT(G41,2),1)*6+RIGHT(LEFT(G41,3),1)*5+RIGHT(LEFT(G41,4),1)*4+RIGHT(LEFT(G41,5),1)*3+RIGHT(LEFT(G41,6),1)*2,11),10)=0)+(RIGHT(LEFT(G41,7),1)-MOD(11-MOD(LEFT(G41,1)*2+RIGHT(LEFT(G41,2),1)*3+RIGHT(LEFT(G41,3),1)*4+RIGHT(LEFT(G41,4),1)*5+RIGHT(LEFT(G41,5),1)*6+RIGHT(LEFT(G41,6),1)*7,11),10)=0)+(AND(LEFT(G41,1)-5=0,RIGHT(LEFT(G41,7),1)-MOD(10-MOD(TRUNC(LEFT(G41,1)/5)+MOD(LEFT(G41,1)*2,10)+RIGHT(LEFT(G41,2),1)+TRUNC(RIGHT(LEFT(G41,3),1)/5)+MOD(RIGHT(LEFT(G41,3),1)*2,10)+RIGHT(LEFT(G41,4),1)+TRUNC(RIGHT(LEFT(G41,5),1)/5)+MOD(RIGHT(LEFT(G41,5),1)*2,10)+RIGHT(LEFT(G41,6),1),10),10)=0))-0)","v":""},{"$f":"IF(AND(AD41=\"\",AE41=\"\",AF41=0),\"Napačna matična številka delodajalca: \"&TRIM(CLEAN(G41))&\"\n\",\"\")","v":""},{"$f":"IF(AND(X41=\"\",Y41=\"\"),VLOOKUP(TRIM(CLEAN(E41)),programi!A:B,2,0),\"\")","v":""},{"$f":"IF(D41=\"\",0,1/COUNTIF(INDIRECT(Y$2&\":\"&Y$3),D41))","v":0},{"$f":"IF(E41=\"\",0,1/COUNTIF(INDIRECT(Z$2&\":\"&Z$3),E41))","v":0},{"$f":"IF(G41=\"\",0,1/COUNTIF(INDIRECT(AD$2&\":\"&AD$3),G41))","v":0},{"$f":"IF(OR(AND(LEN(H41)>0,NOT(ISNUMBER(VALUE(H41)))),AND(LEN(I41)>0,NOT(ISNUMBER(VALUE(I41)))),AND(LEN(J41)>0,NOT(ISNUMBER(VALUE(J41)))),AND(LEN(K41)>0,NOT(ISNUMBER(VALUE(K41))))),\"Podatki o obsegu PUD/PRI vsebujejo znake, ki niso številke. V teh poljih se bo izpisala vrednost 0. \n\",\"\")","v":""},{"$f":"IF(AND(LEN(H41)>0,ISNUMBER(VALUE(H41))),ROUND(VALUE(H41),1),0)","v":0},0,0,{"$f":"AM41+AN41+AO41","v":0},{"$f":"IF(AND(LEN(K41)>0,ISNUMBER(VALUE(K41))),ROUND(VALUE(K41),0),0)","v":0},{"$f":"IF(AND(X41=\"\",Y41=\"\"),VLOOKUP(TRIM(CLEAN(E41)),programi!A:C,3,0),\"\")","v":""},{"$f":"IF(AQ41=0,\"Manjka podatek \"\"Skupaj predpisano število tednov po programu v vseh letnikih\"\". \n\",\"\")","v":"Manjka podatek \"Skupaj predpisano število tednov po programu v vseh letnikih\". \n"},{"$f":"IF(AND(AS41=\"\",COUNTIFS(INDIRECT(Z$2&\":\"&Z$3),E41,INDIRECT(AQ$2&\":\"&AQ$3),\">0\",INDIRECT(AQ$2&\":\"&AQ$3),\"<>\"&AQ41)>0),\"Za isti izobraževalni program (\"&TRIM(CLEAN(E41))&\") so navedene različne predpisane dolžine PUD/PRI. \n\",\"\")","v":""},{"$f":"IF(AND(S41=\"\",AE41=\"\",AS41=\"\",AR41=\"SPI\",SUMIFS(INDIRECT(AP$2&\":\"&AP$3),INDIRECT(Y$2&\":\"&Y$3),D41,INDIRECT(AD$2&\":\"&AD$3),G41,INDIRECT(Z$2&\":\"&Z$3),E41,INDIRECT(AR$2&\":\"&AR$3),\"SPI\")<3),\"Skupna dolžina PUD za to osebo pri delodajalcu \"&TRIM(CLEAN(N41))&\" je krajša od 3 tednov. \n\",\"\")","v":""},{"$f":"IF(AND(S41=\"\",AE41=\"\",AS41=\"\",AR41=\"VSŠ\",SUMIFS(INDIRECT(AP$2&\":\"&AP$3),INDIRECT(Y$2&\":\"&Y$3),D41,INDIRECT(AD$2&\":\"&AD$3),G41,INDIRECT(Z$2&\":\"&Z$3),E41,INDIRECT(AR$2&\":\"&AR$3),\"VSŠ\")<8),\"Skupna dolžina PRI za to osebo pri delodajalcu \"&TRIM(CLEAN(N41))&\" je krajša od 8 tednov. \n\",\"\")","v":""},{"$f":"IF(AND(AR41=\"SPI\",AS41=\"\",AQ41<24),\"Skupaj predpisana dolžina PUD po vseh letnikih je krajša od 24 tednov. \n\",\"\")","v":""},{"$f":"IF(AND(AR41=\"VSŠ\",AS41=\"\",AQ41<20),\"Skupaj predpisana dolžina PRI po vseh letnikih je krajša od 20 tednov. \n\",\"\")","v":""},{"$f":"IF(AND(S41=\"\",AS41=\"\",AU41=\"\",AV41=\"\",SUMIFS(INDIRECT(AP$2&\":\"&AP$3),INDIRECT(Y$2&\":\"&Y$3),D41,INDIRECT(Z$2&\":\"&Z$3),E41)>AQ41),\"Dolžina PUD/PRI pri delodajalcih za to osebo presega skupaj predpisano dolžino po programu v vseh letnikih. \n\",\"\")","v":""},{"$f":"IF(B41=\"\",\"Manjka ime prijavljene osebe. \n\",\"\")","v":"Manjka ime prijavljene osebe. \n"},{"$f":"IF(C41=\"\",\"Manjka priimek prijavljene osebe. \n\",\"\")","v":"Manjka priimek prijavljene osebe. \n"}]
[]
[]
[]
["3.2 IZJAVA ŠOLE O IZPOLNJEVANJU POGOJEV JAVNEGA RAZPISA"]
[" "]
["S podpisom in žigom na tej izjavi pod kazensko in materialno odgovornostjo izjavljamo, da:"]
[]
[null,"1. na dan oddaje vloge smo registrirani za opravljanje izobraževalne dejavnosti in izvajamo srednje poklicno oziroma višje strokovno izobraževanje;"]
[null,"2. na dan oddaje vloge nismo v postopku prisilne poravnave, stečajnem postopku ali likvidacijskem postopku po Zakonu o finančnem poslovanju, postopkih zaradi insolventnosti in prisilnem prenehanju (Uradni list RS, št. 126/07, 40/09, 59/09, 52/10, 106/10 - ORZFPPIPP21, 26/11, 47/11 - ORZFPPIPP21-1, 87/11 - ZPUOOD, 23/12 - odl. US, 48/12 - odl. US, 47/13, 100/13, 10/15 - popr., 27/16, 31/16 - odl. US, 38/16 - odl. US, 63/16 - ZD-C, 30/18 - ZPPDID, 54/18 - odl. US, 69/2019 - odl. US, 49/2020 - ZIUZEOP, 61/2020 - ZZUSUDJZ-A, 61/2020 - ZIUZEOP-A);"]
[null,"3. imamo po stanju na predzadnji delovni dan v mesecu pred mesecem oddaje vloge na javni razpis, poravnane vse zapadle davke, prispevke in druge obvezne dajatve skladno z nacionalno zakonodajo; "]
[null,"4. za stroške, ki so predmet tega javnega razpisa, nismo pridobili in nismo v postopku pridobivanja sofinanciranja istih stroškov iz drugih javnih virov, t.j. iz javnih finančnih sredstev evropskega, državnega ali občinskega proračuna;"]
[null,"5. delodajalec, pri katerem se dijak ali študent praktično usposablja z delom oziroma praktično izobražuje, in šola, kjer je isti dijak ali študent vpisan v zaključni letnik, sta dva različna poslovna subjekta; "]
[null,"6. za prijavljene osebe, za katere delodajalec izvede praktično usposabljanje z delom oziroma praktično izobraževanje, ni bilo dodeljeno sofinanciranje za isti izobraževalni program; "]
[null,"7. dijaki in študenti, za katere delodajalec izvede praktično usposabljanje z delom oziroma praktično izobraževanje, so v šolskem oziroma študijskem letu 2019/2020 vpisani v zaključni letnik izobraževalnega programa, v okviru katerega opravljajo praktično usposabljanje z delom oziroma praktično izobraževanje; "]
[null,"8. za namen tega javnega razpisa dovoljujemo Javnemu štipendijskemu, razvojnemu, invalidskemu in preživninskemu skladu Republike Slovenije pridobitev podatkov iz uradnih evidenc; "]
[null,"9. so vse navedbe, ki smo jih podali v tej vlogi, resnične in ustrezajo dejanskemu stanju. "]
[]
[]
[]
[]
[]
["Kraj",null,"ŽIG",null,"Ime in priimek podpisnika"]
[]
["Datum",null,null,null,"Podpis"]
[]
["3.3 IZJAVA ŠOLE O OBSEGU PRAKTIČNEGA IZOBRAŽEVANJA PRI IZREDNIH ŠTUDENTIH "]
["        "]
[" "]
["S podpisom in žigom na tej izjavi pod kazensko in materialno odgovornostjo izjavljamo, da:"]
[null,"1. študentom, ki izredno študirajo, nismo skrajšali s študijskim programom določenega obsega praktičnega izobraževanja; "]
[null,"2. so vse navedbe, ki smo jih podali v tej vlogi, resnične in ustrezajo dejanskemu stanju. "]
[]
[]
[]
[]
[]
[]
[]
[]
[]
[]
[]
["Kraj",null,"ŽIG",null,"Ime in priimek podpisnika"]
[]
["Datum",null,null,null,"Podpis"]
[]
[]
[]
[]
[]
[]
[]
[]
[]
[]
[]
[]
["OPREMA OVOJNICE "]
[]
["Vloga mora biti oddana v zaprti ovojnici. Oprema ovojnice mora vsebovati vidne oznake »NE ODPIRAJ - VLOGA - JAVNI RAZPIS PUD 2019/2020« ter naziv in naslov vlagatelja."]
[" "]
["Če prijavni obrazec izpolnite v elektronski obliki, se podatki za ovojnico sami prepišejo v okvir."]
[" "]
["Izrežite okvir po zunanjem robu in ga prilepite na sprednjo stran ovojnice."]
[]
[]
[]
[]
[" "]
[null,{"$f":"CONCATENATE(\"Pošiljatelj (naziv in naslov vlagatelja): \n\",TRIM(CLEAN(LEFT(A6,100))),\"\n\",TRIM(CLEAN(LEFT(A8,70))),\"\n\",TRIM(CLEAN(LEFT(A10,10))),\" \",TRIM(CLEAN(LEFT(C10,50))))","v":"Pošiljatelj (naziv in naslov vlagatelja): \n\n\n "}]
[]
[]
[]
[]
[]
[]
[]
[null,"NE ODPIRAJ -"]
[null,"VLOGA -"]
[null,"JAVNI RAZPIS PUD 2019/2020"]
[]
[]
[null,null,null,"Naslovnik: \nJavni štipendijski, razvojni, invalidski in \npreživninski sklad Republike Slovenije\nDunajska cesta 20\n1000 Ljubljana"]

{"sheet":"programi","index":1,"n_rows":114,"n_cols":3,"rows_kept":114,"cut":false,"hidden":true,"merged":[]}
["Administrator",591367,"SPI"]
["Administrator (gibalno ovirani)",651322,"SPI"]
["Administrator (slepi in slabovidni)",758212,"SPI"]
["Administrator DV",999670,"SPI"]
["Administrator (IS)",896602,"SPI"]
["Administrator SI",999603,"SPI"]
["Avtokaroserist",193977,"SPI"]
["Avtoserviser",609882,"SPI"]
["Avtoserviser (DV)",801402,"SPI"]
["Avtoserviser (IS)",227024,"SPI"]
["Avtoserviser SI",999604,"SPI"]
["Bolničar-negovalec",511147,"SPI"]
["Bolničar-negovalec SI",999680,"SPI"]
["Cvetličar",303436,"SPI"]
["Dimnikar",469994,"SPI"]
["Elektrikar",277536,"SPI"]
["Elektrikar (DV)",217133,"SPI"]
["Elektrikar SI",999605,"SPI"]
["Frizer",363034,"SPI"]
["Frizer SI",999606,"SPI"]
["Gastronomske in hotelske storitve",437696,"SPI"]
["Gastronomske in hotelske storitve (DV)",814401,"SPI"]
["Gastronomske in hotelske storitve DV",999671,"SPI"]
["Gastronomske in hotelske storitve (glu, gjm)",999589,"SPI"]
["Gastronomske in hotelske storitve (IS)",653163,"SPI"]
["Gastronomske in hotelske storitve SI",999607,"SPI"]
["Geostrojnik rudar",507423,"SPI"]
["Gospodar na podeželju",614586,"SPI"]
["Gozdar",811671,"SPI"]
["Grafični operater (glu, gjm)",999594,"SPI"]
["Grafični operater (GLU, GLM)",349496,"SPI"]
["Inštalater strojnih inštalacij",105525,"SPI"]
["Inštalater strojnih inštalacij DV",999669,"SPI"]
["Inštalater strojnih inštalacij SI",999608,"SPI"]
["Izdelovalec kovinskih konstrukcij",882245,"SPI"]
["Izdelovalec oblačil",732186,"SPI"]
["Izdelovalec oblačil (gluhi in naglušni)",114163,"SPI"]
["Izvajalec suhomontažne gradnje",473032,"SPI"]
["Kamnosek",348054,"SPI"]
["Klepar-krovec",265034,"SPI"]
["Mehanik kmetijskih in delovnih strojev",390901,"SPI"]
["Mehatronik operater",193683,"SPI"]
["Mehatronik operater (DV)",845264,"SPI"]
["Mehatronik operater SI",999609,"SPI"]
["Mesar",830893,"SPI"]
["Metalurg",105161,"SPI"]
["Mizar",883575,"SPI"]
["Mizar (GLU, GJM)",274127,"SPI"]
["Mlekar",796075,"SPI"]
["Oblikovalec kovin-orodjar",886571,"SPI"]
["Oblikovalec kovin-orodjar DV",869281,"SPI"]
["Oblikovalec kovin-orodjar (gluhi in naglušni)",700035,"SPI"]
["Papirničar",999640,"SPI"]
["Pečar - polagalec keramičnih oblog",708792,"SPI"]
["Pečar - polagalec keramičnih oblog (DV)",679315,"SPI"]
["Pek",769545,"SPI"]
["Polagalec talnih oblog",383621,"SPI"]
["Računalnikar",830004,"SPI"]
["Računalnikar (gibalno ovirani)",195916,"SPI"]
["Računalnikar (GLU, GJM)",377524,"SPI"]
["Računalnikar (IS)",406427,"SPI"]
["Računalnikar SI",999611,"SPI"]
["Slaščičar",298396,"SPI"]
["Slaščičar (glu, gjm)",999588,"SPI"]
["Slikopleskar/črkoslikar",720937,"SPI"]
["Steklar",999646,"SPI"]
["Strojni mehanik",999587,"SPI"]
["Tapetnik",774263,"SPI"]
["Tesar",629944,"SPI"]
["Trgovec",680477,"SPI"]
["Trgovec (DV)",324023,"SPI"]
["Trgovec SI",999612,"SPI"]
["Upravljalec težke gradbene mehanizacije",674716,"SPI"]
["Voznik",579236,"SPI"]
["Vrtnar",179487,"SPI"]
["Vrtnar (glu, gjm)",999586,"SPI"]
["Zidar",121982,"SPI"]
["Zlatar",761033,"SPI"]
["Živilec",158151,"SPI"]
["Avtoservisni menedžment",345212,"VSŠ"]
["Balet",999622,"VSŠ"]
["Bionika",817712,"VSŠ"]
["Ekonomist",287154,"VSŠ"]
["Elektroenergetika",276983,"VSŠ"]
["Elektronika",241836,"VSŠ"]
["Fotografija",581616,"VSŠ"]
["Geotehnologija in rudarstvo",903742,"VSŠ"]
["Gostinstvo in turizem",835716,"VSŠ"]
["Gozdarstvo in lovstvo",140987,"VSŠ"]
["Gradbeništvo",746410,"VSŠ"]
["Hortikultura",222873,"VSŠ"]
["Informatika",426902,"VSŠ"]
["Kozmetika",999624,"VSŠ"]
["Lesarstvo",129493,"VSŠ"]
["Logistično inženirstvo",577332,"VSŠ"]
["Medijska produkcija",114856,"VSŠ"]
["Mehatronika",924665,"VSŠ"]
["Naravovarstvo",745353,"VSŠ"]
["Oblikovanje materialov",842205,"VSŠ"]
["Organizator socialne mreže",106953,"VSŠ"]
["Policist",999569,"VSŠ"]
["Poslovni sekretar",708911,"VSŠ"]
["Računovodstvo",999623,"VSŠ"]
["Snovanje vizualnih komunikacij in trženja",999571,"VSŠ"]
["Strojništvo",636503,"VSŠ"]
["Telekomunikacije",275163,"VSŠ"]
["Upravljanje podeželja in krajine",654472,"VSŠ"]
["Ustni higienik",999599,"VSŠ"]
["Varovanje",562436,"VSŠ"]
["Varstvo okolja in komunala",621761,"VSŠ"]
["Velnes",505295,"VSŠ"]
["Velnes - zasebni program",304185,"VSŠ"]
["Višji policist",999570,"VSŠ"]
["Živilstvo in prehrana",338905,"VSŠ"]

{"sheet":"vlagatelji","index":2,"n_rows":101,"n_cols":3,"rows_kept":101,"cut":false,"hidden":true,"merged":[]}
["ABITURA Podjetje za izobraževanje, d.o.o., Celje",5685630,18146856]
["ACADEMIA družba za storitve d.o.o.",1195280,"52188353"]
["B & B izobraževanje in usposabljanje d.o.o.",5351600,11425946]
["B2 izobraževalni center, d.o.o.",5321018,98299212]
["BIOTEHNIŠKA ŠOLA MARIBOR",5085454,"42181216"]
["BIOTEHNIŠKA ŠOLA RAKIČAN",5089794,81849494]
["Biotehniški center Naklo",5088739,"66817994"]
["BIOTEHNIŠKI IZOBRAŽEVALNI CENTER LJUBLJANA",5084571,"95277145"]
["CENTER ZA IZOBRAŽEVANJE, REHABILITACIJO IN USPOSABLJANJE KAMNIK",5049768,99621053]
["DOBA EVROPSKO POSLOVNO IZOBRAŽEVALNO SREDIŠČE d.o.o.",5365708,"30873045"]
["DVOJEZIČNA SREDNJA ŠOLA LENDAVA KETNYELVU KOZEPISKOLA LENDVA",5084067,"39462692"]
["EDC - zavod za strokovno izobraževanje, Kranj",5929059,23770287]
["EKONOMSKA IN TRGOVSKA ŠOLA BREŽICE",1458558,"51349728"]
["EKONOMSKA ŠOLA MURSKA SOBOTA",5216214,"20192533"]
["EKONOMSKA ŠOLA NOVO MESTO",5089115,"84477849"]
["EMONA EFEKTA, izobraževanje in svetovanje, d.o.o.",5059054,46380264]
["ERUDIO IZOBRAŽEVALNI CENTER, Zavod za izobraževanje, svetovanje in organizacijo",5742307,19618174]
["GEA COLLEGE CVŠ, Družba za višješolsko izobraževanje - Center višjih šol, d.o.o.",2059126,51621193]
["GIMNAZIJA IN SREDNJA KEMIJSKA ŠOLA RUŠE",5085861,11732199]
["GIMNAZIJA IN SREDNJA ŠOLA KOČEVJE",6214312,"22854509"]
["GIMNAZIJA IN SREDNJA ŠOLA RUDOLFA MAISTRA KAMNIK",5178924,27380297]
["GIMNAZIJA JURIJA VEGE IDRIJA",5085969,"34857788"]
["GIMNAZIJA NOVA GORICA",5221161,71839941]
["Gimnazija, elektro in pomorska šola Piran - Ginnasio e Istituto nautico e elettronica Pirano",6286127,84761750]
["GOSPODARSKA ZBORNICA SLOVENIJE CENTER ZA POSLOVNO USPOSABLJANJE",5083443,68827075]
["Elektrotehniško-računalniška strokovna šola in gimnazija Ljubljana",5084172,83657533]
["GRI izobraževanje, storitve, trgovina d.o.o.",5589126,12879738]
["GRM NOVO MESTO - center biotehnike in turizma",5089107,"46571558"]
["INŠTITUT IN AKADEMIJA ZA MULTIMEDIJE, Ljubljana",1555308,70623520]
["IZOBRAŽEVALNI CENTER ENERGETSKEGA SISTEMA",2042410,44879563]
["Izobraževalni center Memory, izobraževanje in svetovanje d.o.o.",3447197,2042410]
["IZOBRAŽEVALNI CENTER PIRAMIDA MARIBOR",5085438,"63009820"]
["EKONOMSKA ŠOLA CELJE",6280684,"56965346"]
["Konservatorij za glasbo in balet Ljubljana",5088763,77065956]
["LAMPRET CONSULTING d.o.o. agencija za podjetniško svetovanje in izobraževanje",5801672,49255045]
["LEILA, izobraževanje in raziskovanje, d.o.o.",5292743,52680126]
["Lesarska šola Maribor",6669115,"22590439"]
["MINISTRSTVO ZA NOTRANJE ZADEVE POLICIJA",1332813,47429518]
["MUCH, izobraževanje, d.o.o. - v stečaju",5391822,91812925]
["PARATUS izobraževanje in svetovanje d.o.o.",1893866,15151131]
["PRAH, izobraževalni center, izobraževanje in usposabljanje, d.o.o.",5365759,94414262]
["PROMETNA ŠOLA MARIBOR",5183120,"49707728"]
["SKALDENS, zasebni zdravstveni zavod",1663780,40656306]
["SREDNJA EKONOMSKO - POSLOVNA ŠOLA KOPER - SCUOLA MEDIA DI ECONOMIA E GESTIONE AZIENDALE CAPODISTRIA",5088712,"26806088"]
["Srednja elektro-računalniška šola Maribor",6430856,"58751009"]
["SREDNJA FRIZERSKA ŠOLA LJUBLJANA",5653347,"42992206"]
["SREDNJA GOSTINSKA IN TURISTIČNA ŠOLA RADOVLJICA",5921678,"29929610"]
["SREDNJA GOZDARSKA IN LESARSKA ŠOLA POSTOJNA",5089808,"55477232"]
["SREDNJA GRADBENA ŠOLA IN GIMNAZIJA MARIBOR",5089930,"77098846"]
["SREDNJA GRADBENA, GEODETSKA IN OKOLJEVARSTVENA ŠOLA LJUBLJANA",5084130,54108411]
["SREDNJA MEDIJSKA IN GRAFIČNA ŠOLA Ljubljana",5086671,77459849]
["SREDNJA POKLICNA IN TEHNIŠKA ŠOLA MURSKA SOBOTA",5508550,"54021839"]
["SREDNJA ŠOLA ČRNOMELJ",5085934,"72429968"]
["Srednja šola Domžale",5084750,"28922026"]
["SREDNJA ŠOLA IZOLA - SCUOLA MEDIA ISOLA",6285996,"83800280"]
["SREDNJA ŠOLA JESENICE",5854105,"62275348"]
["SREDNJA ŠOLA JOSIPA JURČIČA IVANČNA GORICA",5623685,11898852]
["SREDNJA ŠOLA PIETRO COPPO IZOLA SCUOLA MEDIA PIETRO COPPO ISOLA",5083893,47081961]
["SREDNJA ŠOLA SLOVENSKA BISTRICA",1429221,"10927140"]
["SREDNJA ŠOLA TEHNIŠKIH STROK ŠIŠKA",5631564,"57726612"]
["SREDNJA ŠOLA VENO PILON AJDOVŠČINA",5084997,13997360]
["SREDNJA ŠOLA ZA GOSTINSTVO IN TURIZEM CELJE",5085900,"16722841"]
["SREDNJA ŠOLA ZA GOSTINSTVO IN TURIZEM MARIBOR",5086752,"79487491"]
["SREDNJA ŠOLA ZA GOSTINSTVO IN TURIZEM RADENCI",5084784,"90515781"]
["SREDNJA ŠOLA ZA GOSTINSTVO IN TURIZEM V LJUBLJANI",5084890,"65441419"]
["SREDNJA ŠOLA ZA OBLIKOVANJE MARIBOR",5086736,"72453117"]
["SREDNJA ŠOLA ZAGORJE",5263603,"62434934"]
["SREDNJA TEHNIŠKA IN POKLICNA ŠOLA TRBOVLJE",5243297,"15203298"]
["SREDNJA TEHNIŠKA ŠOLA KOPER - SCUOLA MEDIA TECNICA DI CAPODISTRIA",5083176,"67914063"]
["SREDNJA TRGOVSKA ŠOLA LJUBLJANA",5086647,"95740791"]
["SREDNJA TRGOVSKA ŠOLA MARIBOR",5086744,"17683785"]
["SREDNJA UPRAVNO ADMINISTRATIVNA ŠOLA Ljubljana",5086094,50498720]
["Srednja zdravstvena in kozmetična šola Maribor",5088895,"86411462"]
["SREDNJA ZDRAVSTVENA ŠOLA CELJE",5083621,"52910946"]
["SREDNJA ZDRAVSTVENA ŠOLA LJUBLJANA",5242045,"31987249"]
["SREDNJA ZDRAVSTVENA ŠOLA MURSKA SOBOTA",5085748,"45797781"]
["Strokovni izobraževalni center Ljubljana",5089883,"55517951"]
["Šola za hortikulturo in vizualne umetnosti Celje",1201794,"83625950"]
["ŠOLSKI CENTER CELJE",5082692,"76965007"]
["Šolski center Kranj",6286259,"12782076"]
["ŠOLSKI CENTER KRŠKO-SEVNICA",5083982,"36867578"]
["ŠOLSKI CENTER LJUBLJANA",1430971,"73059471"]
["Šolski center Nova Gorica",5089085,"69993211"]
["ŠOLSKI CENTER NOVO MESTO",5258782,"68565127"]
["ŠOLSKI CENTER POSTOJNA",5086957,"17067006"]
["ŠOLSKI CENTER PTUJ",5064678,"23369809"]
["ŠOLSKI CENTER RAVNE NA KOROŠKEM",2345188,"27201163"]
["ŠOLSKI CENTER ROGAŠKA SLATINA ",5087996,21344205]
["ŠOLSKI CENTER SLOVENJ GRADEC",5089417,"73346276"]
["ŠOLSKI CENTER SLOVENSKE KONJICE - ZREČE",5052343,"93550049"]
["Šolski center Srečka Kosovela Sežana",5009189,"74080601"]
["ŠOLSKI CENTER ŠENTJUR",1214438,"11775823"]
["ŠOLSKI CENTER ŠKOFJA LOKA",5087872,"13129635"]
["ŠOLSKI CENTER VELENJE",5243050,"98282522"]
["ŠOLSKI CENTER ZA POŠTO, EKONOMIJO IN TELEKOMUNIKACIJE LJUBLJANA",5083435,"76893375"]
["Tehniški šolski center Maribor",6669107,"95675680"]
["Višja strokovna šola za gostinstvo in turizem Maribor",1278096,"72005297"]
["Višja strokovna šola za gostinstvo, velnes in turizem Bled",5957656,"51691051"]
["Višja strokovna šola za kozmetiko in velnes Ljubljana",6290957,"18772897"]
["VIŠJA ŠOLA ZA RAČUNOVODSTVO IN FINANCE, LJUBLJANA",6719694,67759033]
["ZAVOD ZA GLUHE IN NAGLUŠNE LJUBLJANA",5695252,"57421838"]

{"sheet":"banke","index":3,"n_rows":19,"n_cols":2,"rows_kept":19,"cut":false,"hidden":true,"merged":[]}
[5026024000,"ABANKA d.d."]
[1319175000,"ADDIKO BANK d.d."]
[5092221000,"BANKA INTESA SANPAOLO D.D."]
[5023912000,"BANKA SLOVENIJE"]
[2211254000,"BANKA SPARKASSE d.d."]
[2013649000,"BKS Bank AG Bančna podružnica"]
[5448557000,"Delavska hranilnica d.d. Ljubljana"]
[5349907000,"DEŽELNA BANKA SLOVENIJE d.d."]
[5103061000,"GORENJSKA BANKA d.d., KRANJ"]
[5624908000,"Hranilnica LON d.d., Kranj"]
[5860580000,"NOVA KREDITNA BANKA MARIBOR d.d."]
[5860571000,"NOVA LJUBLJANSKA BANKA d.d., LJUBLJANA"]
[5214246000,"Primorska hranilnica Vipava d.d."]
[2253763000,"RCI Banque Societe Anonyme, bančna podružnica Ljubljana"]
[5496527000,"SBERBANK BANKA d.d."]
[5665493000,"SID - SLOVENSKA IZVOZNA IN RAZVOJNA BANKA, d.d., LJUBLJANA"]
[5026237000,"SKB BANKA d.d. LJUBLJANA"]
[5446546000,"UNICREDIT BANKA SLOVENIJA d.d."]
[5023912000,"Uprava RS za javna plačila"]

{"sheet":"furs","index":4,"n_rows":15,"n_cols":67,"rows_kept":15,"cut":false,"hidden":true,"merged":[]}
["Furs"]
["/"]
["SI"]
[]
[]
[]
[]
[]
[]
[]
[]
[]
[]
[]
[1,2,3,4,5,6,7,8,9,10,11,12,13,14,15,16,17,18,19,20,21,22,23,24,25,26,27,28,29,30,31,32,33,34,35,36,37,38,39,40,41,42,43,44,45,46,47,48,49,50,51,52,53,54,55,56,57,58,59,60,61,62,63,64,65,66,67]

{"sheet":"copyrowentry","index":5,"n_rows":6,"n_cols":53,"rows_kept":6,"cut":false,"hidden":true,"merged":[]}
[]
[]
[]
[]
[{"$f":"ROW()-U$1","v":5},null,null,null,null,null,null,null,null,null,null,{"$f":"AP5","v":0},null,{"$f":"TRIM(CLEAN(F5))","v":""},{"$f":"PROPER(TRIM(CLEAN(SUBSTITUTE(SUBSTITUTE(\"x\"&B5&\" \"&C5,\"Ć\",\"Č\"),\"ć\",\"č\"))))","v":"X"},{"$f":"IF(ISNUMBER(VALUE(D5)),SUBSTITUTE(SUBSTITUTE(D5,\".\",\"\"),\",\",\"\"),\"\")","v":""},{"$f":"AZ5&BA5&R5&S5&U5&V5&W5&X5&Y5&Z5&AD5&AE5&AG5&AL5&AS5&AU5&AV5&AW5&AX5&AY5","v":{"$error":"#REF!"}},{"$f":"IF(AND(LEN(D5)>0,D5<>P5),\"EMŠO prijavljene osebe vsebuje znake, ki niso številke: \"&D5&\" \n\",\"\")","v":""},{"$f":"IF(D5=\"\",\"Manjka EMŠO prijavljene osebe. \n\",\"\")","v":"Manjka EMŠO prijavljene osebe. \n"},{"$f":"IF(AND(LEN(D5)=13,R5=\"\"),RIGHT(D5,1)-MOD(11-MOD(LEFT(D5,1)*7+RIGHT(LEFT(D5,2),1)*6+RIGHT(LEFT(D5,3),1)*5+RIGHT(LEFT(D5,4),1)*4+RIGHT(LEFT(D5,5),1)*3+RIGHT(LEFT(D5,6),1)*2+RIGHT(LEFT(D5,7),1)*7+RIGHT(LEFT(D5,8),1)*6+RIGHT(LEFT(D5,9),1)*5+RIGHT(LEFT(D5,10),1)*4+RIGHT(LEFT(D5,11),1)*3+RIGHT(LEFT(D5,12),1)*2,11),11)=0,0)","v":0},{"$f":"IF(AND(R5=\"\",S5=\"\",NOT(T5)),\"Napačen EMŠO prijavljene osebe: \"&D5&\" \n\",\"\")","v":""},{"$f":"IF(AND(D5<>\"\",COUNTIFS(INDIRECT(X$2&\":\"&X$3),\"<>\"&O5,INDIRECT(Y$2&\":\"&Y$3),\"<>\",INDIRECT(Y$2&\":\"&Y$3),D5)>0),\"Za različne prijavljene osebe je vpisan isti EMŠO: \"&D5&\" \n\",\"\")","v":{"$error":"#REF!"}},{"$f":"IF(AND(E5<>\"\",COUNTIFS(INDIRECT(Y$2&\":\"&Y$3),D5,INDIRECT(Z$2&\":\"&Z$3),\"<>\",INDIRECT(Z$2&\":\"&Z$3),\"<>\"&E5)>0),\"Za to prijavljeno osebo sta vpisana različna izobraževalna programa. \n\",\"\")","v":{"$error":"#REF!"}},{"$f":"IF(E5=\"\",\"Manjka izobraževalni program. \n\",\"\")","v":"Manjka izobraževalni program. \n"},{"$f":"IF(AND(E5<>\"\",COUNTIF(programi!A:A,TRIM(CLEAN(E5)))=0),\"Napaka pri vnosu izobraževalnega programa. \n\",\"\")","v":""},{"$f":"IF(AND(D5<>\"\",COUNTIFS(INDIRECT(Y$2&\":\"&Y$3),D5,INDIRECT(AD$2&\":\"&AD$3),G5)>1),\"Ista oseba (EMŠO: \"&TRIM(CLEAN(D5))&\") je več kot enkrat navedena pri istem delodajalcu (\"&TRIM(CLEAN(N5))&\"). \n\",\"\")","v":{"$error":"#REF!"}},null,null,{"$f":"IF(AND(G5<>\"\",ISNUMBER(VALUE(G5))),VALUE(SUBSTITUTE(SUBSTITUTE(G5,\".\",\"\"),\",\",\"\")),\"\")","v":""},{"$f":"IF(AND(G5<>\"\",TEXT(G5,\"#\")<>TEXT(AC5,\"#\")),\"Matična številka delodajalca vsebuje znake, ki niso številke: \"&TRIM(CLEAN(G5))&\"\n\",\"\")","v":""},{"$f":"IF(G5=\"\",\"Manjka matična številka delodajalca. \n\",\"\")","v":"Manjka matična številka delodajalca. \n"},{"$f":"IF(OR(AD5<>\"\",AE5<>\"\",AND(LEFT(G5,3)=\"100\",LEN(G5)=9)),\"\",(RIGHT(LEFT(G5,7),1)-MOD(11-MOD(LEFT(G5,1)*7+RIGHT(LEFT(G5,2),1)*6+RIGHT(LEFT(G5,3),1)*5+RIGHT(LEFT(G5,4),1)*4+RIGHT(LEFT(G5,5),1)*3+RIGHT(LEFT(G5,6),1)*2,11),10)=0)+(RIGHT(LEFT(G5,7),1)-MOD(11-MOD(LEFT(G5,1)*2+RIGHT(LEFT(G5,2),1)*3+RIGHT(LEFT(G5,3),1)*4+RIGHT(LEFT(G5,4),1)*5+RIGHT(LEFT(G5,5),1)*6+RIGHT(LEFT(G5,6),1)*7,11),10)=0)+(AND(LEFT(G5,1)-5=0,RIGHT(LEFT(G5,7),1)-MOD(10-MOD(TRUNC(LEFT(G5,1)/5)+MOD(LEFT(G5,1)*2,10)+RIGHT(LEFT(G5,2),1)+TRUNC(RIGHT(LEFT(G5,3),1)/5)+MOD(RIGHT(LEFT(G5,3),1)*2,10)+RIGHT(LEFT(G5,4),1)+TRUNC(RIGHT(LEFT(G5,5),1)/5)+MOD(RIGHT(LEFT(G5,5),1)*2,10)+RIGHT(LEFT(G5,6),1),10),10)=0))-0)","v":""},{"$f":"IF(AND(AD5=\"\",AE5=\"\",AF5=0),\"Napačna matična številka delodajalca: \"&TRIM(CLEAN(G5))&\"\n\",\"\")","v":""},{"$f":"IF(AND(X5=\"\",Y5=\"\"),VLOOKUP(TRIM(CLEAN(E5)),programi!A:B,2,0),\"\")","v":""},{"$f":"IF(D5=\"\",0,1/COUNTIF(INDIRECT(Y$2&\":\"&Y$3),D5))","v":0},{"$f":"IF(E5=\"\",0,1/COUNTIF(INDIRECT(Z$2&\":\"&Z$3),E5))","v":0},{"$f":"IF(G5=\"\",0,1/COUNTIF(INDIRECT(AD$2&\":\"&AD$3),G5))","v":0},{"$f":"IF(OR(AND(LEN(H5)>0,NOT(ISNUMBER(VALUE(H5)))),AND(LEN(I5)>0,NOT(ISNUMBER(VALUE(I5)))),AND(LEN(J5)>0,NOT(ISNUMBER(VALUE(J5)))),AND(LEN(K5)>0,NOT(ISNUMBER(VALUE(K5))))),\"Podatki o obsegu PUD/PRI vsebujejo znake, ki niso številke. V teh poljih se bo izpisala vrednost 0. \n\",\"\")","v":""},{"$f":"IF(AND(LEN(H5)>0,ISNUMBER(VALUE(H5))),ROUND(VALUE(H5),1),0)","v":0},0,0,{"$f":"AM5+AN5+AO5","v":0},{"$f":"IF(AND(LEN(K5)>0,ISNUMBER(VALUE(K5))),ROUND(VALUE(K5),0),0)","v":0},{"$f":"IF(AND(X5=\"\",Y5=\"\"),VLOOKUP(TRIM(CLEAN(E5)),programi!A:C,3,0),\"\")","v":""},{"$f":"IF(AQ5=0,\"Manjka podatek \"\"Skupaj predpisano število tednov po programu v vseh letnikih\"\". \n\",\"\")","v":"Manjka podatek \"Skupaj predpisano število tednov po programu v vseh letnikih\". \n"},{"$f":"IF(AND(AS5=\"\",COUNTIFS(INDIRECT(Z$2&\":\"&Z$3),E5,INDIRECT(AQ$2&\":\"&AQ$3),\">0\",INDIRECT(AQ$2&\":\"&AQ$3),\"<>\"&AQ5)>0),\"Za isti izobraževalni program (\"&TRIM(CLEAN(E5))&\") so navedene različne predpisane dolžine PUD/PRI. \n\",\"\")","v":{"$error":"#REF!"}},{"$f":"IF(AND(S5=\"\",AE5=\"\",AS5=\"\",AR5=\"SPI\",SUMIFS(INDIRECT(AP$2&\":\"&AP$3),INDIRECT(Y$2&\":\"&Y$3),D5,INDIRECT(AD$2&\":\"&AD$3),G5,INDIRECT(Z$2&\":\"&Z$3),E5,INDIRECT(AR$2&\":\"&AR$3),\"SPI\")<3),\"Skupna dolžina PUD za to osebo pri delodajalcu \"&TRIM(CLEAN(N5))&\" je krajša od 3 tednov. \n\",\"\")","v":{"$error":"#REF!"}},{"$f":"IF(AND(S5=\"\",AE5=\"\",AS5=\"\",AR5=\"VSŠ\",SUMIFS(INDIRECT(AP$2&\":\"&AP$3),INDIRECT(Y$2&\":\"&Y$3),D5,INDIRECT(AD$2&\":\"&AD$3),G5,INDIRECT(Z$2&\":\"&Z$3),E5,INDIRECT(AR$2&\":\"&AR$3),\"VSŠ\")<8),\"Skupna dolžina PRI za to osebo pri delodajalcu \"&TRIM(CLEAN(N5))&\" je krajša od 8 tednov. \n\",\"\")","v":{"$error":"#REF!"}},{"$f":"IF(AND(AR5=\"SPI\",AS5=\"\",AQ5<24),\"Skupaj predpisana dolžina PUD po vseh letnikih je krajša od 24 tednov. \n\",\"\")","v":""},{"$f":"IF(AND(AR5=\"VSŠ\",AS5=\"\",AQ5<20),\"Skupaj predpisana dolžina PRI po vseh letnikih je krajša od 20 tednov. \n\",\"\")","v":""},{"$f":"IF(AND(S5=\"\",AS5=\"\",AU5=\"\",AV5=\"\",SUMIFS(INDIRECT(AP$2&\":\"&AP$3),INDIRECT(Y$2&\":\"&Y$3),D5,INDIRECT(Z$2&\":\"&Z$3),E5)>AQ5),\"Dolžina PUD/PRI pri delodajalcih za to osebo presega skupaj predpisano dolžino po programu v vseh letnikih. \n\",\"\")","v":{"$error":"#REF!"}},{"$f":"IF(B5=\"\",\"Manjka ime prijavljene osebe. \n\",\"\")","v":"Manjka ime prijavljene osebe. \n"},{"$f":"IF(C5=\"\",\"Manjka priimek prijavljene osebe. \n\",\"\")","v":"Manjka priimek prijavljene osebe. \n"}]
[null,null,null,null,null,null,null,null,null,null,null,null,null,null,null,null,null,null,null,null,null,null,null,null,null,null,null,null,{"$f":"TEXT(AC5,\"#\")","v":""}]

{"sheet":"report","index":6,"n_rows":15,"n_cols":11,"rows_kept":15,"cut":false,"hidden":true,"merged":[[7,1,7,2],[7,3,7,4],[7,6,7,7],[7,9,7,12],[9,1,9,8],[9,10,9,11],[5,1,5,5],[6,1,6,2],[6,3,6,4],[6,6,6,7],[6,9,6,12],[10,10,10,11],[12,1,12,6],[12,7,13,9],[12,10,13,11],[13,1,13,2],[13,3,13,4],[13,5,13,6],[10,1,10,8],[14,1,14,2],[14,3,14,4],[14,5,14,6],[14,7,14,9],[14,10,14,11]]}
[]
[]
[]
[]
[]
[null,"Podatki o dijaku oz. študentu št. ",null,null,null,null,{"$f":"TRUNC((ROW()-V$37)/12)+1","v":1}]
[]
[null,"Ime dijaka/študenta",null,"Priimek dijaka/študenta",null,null,"EMŠO dijaka/študenta",null,null,"Izobraževalni program"]
[]
[]
[null,"Naziv delodajalca",null,null,null,null,null,null,null,null,"Matična št. delodajalca (oz. KMG-MID)"]
[]
[null," Število tednov PUD/PRI v letniku pri tem delodajalcu po pogodbi",null,null,null,null,null,"Skupaj število tednov \npri tem delodajalcu",null,null,"Skupaj predpisano št. tednov po programu v vseh letnikih"]
[null,"1. letnik",null,"2. letnik",null,"3. letnik"]
[null,{"$f":"ROUND(V15,1)","v":0},null,{"$f":"ROUND(W15,1)","v":0},null,{"$f":"ROUND(X15,1)","v":0},null,{"$f":"ROUND(B15,1)+ROUND(D15,1)+ROUND(F15,1)","v":0},null,null,{"$f":"ROUND(Y15,0)","v":0}]

{"sheet":"izpis","index":7,"n_rows":194,"n_cols":25,"rows_kept":194,"cut":false,"hidden":true,"merged":[[46,1,46,2],[46,3,46,4],[46,5,46,6],[46,7,46,9],[46,10,46,11],[42,1,42,8],[42,10,42,11],[44,1,44,6],[44,7,45,9],[44,10,45,11],[45,1,45,2],[45,3,45,4],[45,5,45,6],[39,1,39,2],[39,3,39,4],[39,6,39,7],[39,9,39,12],[41,1,41,8],[41,10,41,11],[37,1,37,5],[38,1,38,2],[38,3,38,4],[38,6,38,7],[38,9,38,12],[58,1,58,2],[58,3,58,4],[58,5,58,6],[58,7,58,9],[58,10,58,11],[54,1,54,8],[54,10,54,11],[56,1,56,6],[56,7,57,9],[56,10,57,11],[57,1,57,2],[57,3,57,4],[57,5,57,6],[51,1,51,2],[51,3,51,4],[51,6,51,7],[51,9,51,12],[53,1,53,8],[53,10,53,11],[49,1,49,5],[50,1,50,2],[50,3,50,4],[50,6,50,7],[50,9,50,12],[70,1,70,2],[70,3,70,4],[70,5,70,6],[70,7,70,9],[70,10,70,11],[66,1,66,8],[66,10,66,11],[68,1,68,6],[68,7,69,9],[68,10,69,11],[69,1,69,2],[69,3,69,4],[69,5,69,6],[63,1,63,2],[63,3,63,4],[63,6,63,7],[63,9,63,12],[65,1,65,8],[65,10,65,11],[61,1,61,5],[62,1,62,2],[62,3,62,4],[62,6,62,7],[62,9,62,12],[82,1,82,2],[82,3,82,4],[82,5,82,6],[82,7,82,9],[82,10,82,11],[78,1,78,8],[78,10,78,11],[80,1,80,6],[80,7,81,9],[80,10,81,11],[81,1,81,2],[81,3,81,4],[81,5,81,6],[75,1,75,2],[75,3,75,4],[75,6,75,7],[75,9,75,12],[77,1,77,8],[77,10,77,11],[73,1,73,5],[74,1,74,2],[74,3,74,4],[74,6,74,7],[74,9,74,12],[94,1,94,2],[94,3,94,4],[94,5,94,6],[94,7,94,9],[94,10,94,11],[90,1,90,8],[90,10,90,11],[92,1,92,6],[92,7,93,9],[92,10,93,11],[93,1,93,2],[93,3,93,4],[93,5,93,6],[87,1,87,2],[87,3,87,4],[87,6,87,7],[87,9,87,12],[89,1,89,8],[89,10,89,11],[85,1,85,5],[86,1,86,2],[86,3,86,4],[86,6,86,7],[86,9,86,12],[98,3,98,4],[98,6,98,7],[98,9,98,12],[106,1,106,2],[106,3,106,4],[106,5,106,6],[106,7,106,9],[106,10,106,11],[102,1,102,8],[102,10,102,11],[104,1,104,6],[104,7,105,9],[104,10,105,11],[105,1,105,2],[105,3,105,4],[105,5,105,6],[10,4,10,7],[11,6,11,8],[118,3,118,4],[118,5,118,6],[27,1,27,6],[28,1,28,6],[116,1,116,6],[116,7,117,9],[118,7,118,9],[111,9,111,12],[111,6,111,7],[114,1,114,8],[29,1,29,12],[13,0,13,8],[20,10,20,13],[14,0,14,7],[99,1,99,2],[99,3,99,4],[99,6,99,7],[99,9,99,12],[101,1,101,8],[101,10,101,11],[97,1,97,5],[98,1,98,2],[144,0,144,13],[163,0,163,5],[163,8,163,13],[162,0,162,5],[147,0,147,12],[148,1,148,12],[149,1,149,12],[160,8,160,13],[162,8,162,13],[0,0,0,13],[1,0,1,13],[2,0,2,13],[6,0,6,13],[8,0,8,13],[5,0,5,13],[7,0,7,13],[3,0,3,3],[180,2,186,8],[15,7,15,14],[19,0,19,7],[17,0,17,3],[21,0,21,3],[20,0,20,7],[15,0,15,1],[16,0,16,1],[16,2,16,5],[15,2,15,5],[24,1,24,12],[22,0,22,3],[16,7,16,14],[25,2,25,6],[19,10,19,13],[25,8,25,12],[193,7,196,12],[110,3,110,4],[109,1,109,5],[139,8,139,13],[117,1,117,2],[114,10,114,11],[113,10,113,11],[172,0,172,13],[174,0,174,13],[142,8,142,13],[142,0,142,5],[140,8,140,13],[140,6,141,7],[161,8,161,13],[110,6,110,7],[111,1,111,2],[113,1,113,8],[118,10,118,11],[116,10,117,11],[118,1,118,2],[170,0,170,13],[160,0,160,5],[161,0,161,5],[161,6,162,7],[9,0,9,2],[9,4,9,7],[122,0,122,13],[141,8,141,13],[130,1,130,12],[131,1,131,12],[132,1,132,12],[133,1,133,12],[134,1,134,12],[139,0,139,5],[141,0,141,5],[140,0,140,5],[110,1,110,2],[110,9,110,12],[12,0,12,3],[11,0,11,3],[129,1,129,12],[124,0,124,13],[117,3,117,4],[117,5,117,6],[111,3,111,4],[126,1,126,12],[127,1,127,12],[128,1,128,12]]}
[{"$f":"'Prijavni obrazec za šolo'!A1:N1","v":"SKLOP B"},null,null,null,null,null,null,null,null,null,null,null,null,null,null,null,null,null,null,null,{"$f":"ROW(A37)","v":37},7]
[{"$f":"'Prijavni obrazec za šolo'!A2:N2","v":"3.1 PRIJAVNI OBRAZEC ZA ŠOLO"},null,null,null,null,null,null,null,null,null,null,null,null,null,null,null,null,null,null,null,null,{"$f":"U1+1","v":38}]
[{"$f":"'Prijavni obrazec za šolo'!A3:N3","v":"JR PUD 2019/2020"},null,null,null,null,null,null,null,null,null,null,null,null,null,null,null,null,null,null,null,null,{"$f":"U1+12*V1","v":121}]
[{"$f":"'Prijavni obrazec za šolo'!A4:D4","v":"Podatki o šoli"}]
[]
[{"$f":"TRIM(CLEAN('Prijavni obrazec za šolo'!A6))","v":""}]
[{"$f":"'Prijavni obrazec za šolo'!A7","v":"Uradni naziv vlagatelja (šole ali šolskega centra)"}]
[{"$f":"TRIM(CLEAN('Prijavni obrazec za šolo'!A8))","v":""}]
[{"$f":"'Prijavni obrazec za šolo'!A9","v":"Ulica in hišna številka"}]
[{"$f":"TRIM(CLEAN('Prijavni obrazec za šolo'!A10))","v":""},null,null,null,{"$f":"TRIM(CLEAN('Prijavni obrazec za šolo'!C10))","v":""}]
[{"$f":"'Prijavni obrazec za šolo'!A11","v":"Poštna številka"},null,null,null,{"$f":"'Prijavni obrazec za šolo'!E11","v":0}]
[{"$f":"TRIM(CLEAN('Prijavni obrazec za šolo'!A12))","v":""},null,null,null,null,{"$f":"TRIM(CLEAN('Prijavni obrazec za šolo'!D12))","v":""},{"$f":"TRIM(CLEAN('Prijavni obrazec za šolo'!E12))","v":""}]
[{"$f":"'Prijavni obrazec za šolo'!A13","v":"Matična številka"},null,null,null,null,{"$f":"'Prijavni obrazec za šolo'!D13","v":"(SI) "},{"$f":"'Prijavni obrazec za šolo'!E13","v":"ID za DDV ali davčna številka"}]
[{"$f":"TRIM(CLEAN('Prijavni obrazec za šolo'!A14))","v":""}]
[{"$f":"'Prijavni obrazec za šolo'!A15","v":"Ime in priimek zakonitega zastopnika"}]
[{"$f":"'Prijavni obrazec za šolo'!A16","v":"SI 56"},null,{"$f":"TRIM(CLEAN('Prijavni obrazec za šolo'!B16))","v":""},null,null,null,null,{"$f":"TRIM(CLEAN('Prijavni obrazec za šolo'!E16))","v":""}]
[null,null,{"$f":"'Prijavni obrazec za šolo'!B17","v":"Številka TRR"},null,null,null,null,{"$f":"'Prijavni obrazec za šolo'!E17","v":"Banka vlagatelja oz. Uprava RS za javna plačila"}]
[{"$f":"'Prijavni obrazec za šolo'!A18","v":"Kontaktni podatki"}]
[]
[{"$f":"TRIM(CLEAN('Prijavni obrazec za šolo'!A20))","v":""},null,null,null,null,null,null,null,null,null,{"$f":"TRIM(CLEAN('Prijavni obrazec za šolo'!F20))","v":""}]
[{"$f":"'Prijavni obrazec za šolo'!A21","v":"Ime in priimek koordinatorja za PUD/PRI"},null,null,null,null,null,null,null,null,null,{"$f":"'Prijavni obrazec za šolo'!F21","v":"Tel. št. koordinatorja za PUD/PRI"}]
[{"$f":"TRIM(CLEAN('Prijavni obrazec za šolo'!A22))","v":""}]
[{"$f":"'Prijavni obrazec za šolo'!A23","v":"Tel. št. šole"}]
[]
[null,{"$f":"'Prijavni obrazec za šolo'!B25","v":"Spoštujemo vašo pravico do zasebnosti in pregleda nad oddanimi podatki. E-poštni naslov bo Javni štipendijski, razvojni, invalidski in \npreživninski sklad Republike Slovenije uporabljal izključno za obveščanje o izvajanju programa »Povezava sistema poklicnega in \nstrokovnega izobraževanja s potrebami trga dela 2018-2022«."}]
[null,1,"DOVOLIM uporabo e-poštnega naslova za \nobveščanje o izvajanju programa »Povezava \nsistema poklicnega in strokovnega izobraževanja \ns potrebami trga dela 2018-2022«",null,null,null,null,null,"NE DOVOLIM uporabe e-poštnega naslova za \nobveščanje o izvajanju programa »Povezava \nsistema poklicnega in strokovnega izobraževanja \ns potrebami trga dela 2018-2022«"]
[]
[null,{"$f":"TRIM(CLEAN('Prijavni obrazec za šolo'!B28))","v":""}]
[null,{"$f":"'Prijavni obrazec za šolo'!B29:G29","v":"Elektronski naslov koordinatorja za PUD/PRI"}]
[null,{"$f":"'Prijavni obrazec za šolo'!B30:M30","v":"Vaše podatke lahko kadarkoli pregledate in zahtevate njihov popravek ali izbris oziroma prekličete osebno privolitev. To lahko \nstorite s sporočilom na e-naslov pud@sklad-kadri.si ali po telefonu 01 43 45 875."}]
[]
[]
[{"$f":"'Prijavni obrazec za šolo'!A33","v":"SEZNAM PRIJAVLJENIH OSEB"}]
[{"$f":"'Prijavni obrazec za šolo'!A34","v":"Prijavljene osebe in delodajalce vpišite v seznam tako, da bodo urejeni po abecedi (po delodajalcih in po osebah)."}]
[{"$f":"'Prijavni obrazec za šolo'!A35","v":"Za dodajanje prijavljenih oseb pritisnite gumb »Dodaj nov vnos za dijaka/študenta«. "}]
[{"$f":"'Prijavni obrazec za šolo'!A36","v":"Če prijavljena oseba opravlja PUD/PRI pri več različnih delodajalcih, jo je potrebno vpisati večkrat, pri vsakem delodajalcu posebej."}]
[null,null,null,null,null,null,null,null,null,null,null,null,null,null,null,null,null,null,null,null,null,{"$f":"ROW()","v":37}]
[null,"Podatki o dijaku oz. študentu št. ",null,null,null,null,{"$f":"TRUNC((ROW()-V$37)/12)+1","v":1}]
[null,"",null,"",null,null,"",null,null,""]
[null,"Ime dijaka/študenta",null,"Priimek dijaka/študenta",null,null,"EMŠO dijaka/študenta",null,null,"Izobraževalni program"]
[]
[null,"",null,null,null,null,null,null,null,null,""]
[null,"Naziv delodajalca",null,null,null,null,null,null,null,null,"Matična št. delodajalca (oz. KMG-MID)"]
[]
[null," Število tednov PUD/PRI v letniku pri tem delodajalcu po pogodbi",null,null,null,null,null,"Skupaj število tednov \npri tem delodajalcu",null,null,"Skupaj predpisano št. tednov po programu v vseh letnikih"]
[null,"1. letnik",null,"2. letnik",null,"3. letnik"]
[null,{"$f":"ROUND(V47,1)","v":0},null,{"$f":"ROUND(W47,1)","v":0},null,{"$f":"ROUND(X47,1)","v":0},null,{"$f":"ROUND(B47,1)+ROUND(D47,1)+ROUND(F47,1)","v":0},null,null,{"$f":"ROUND(Y47,0)","v":0},null,null,null,null,null,null,null,null,null,null,0,0,0,0]
[]
[]
[null,"Podatki o dijaku oz. študentu št. ",null,null,null,null,{"$f":"TRUNC((ROW()-V$37)/12)+1","v":2}]
[null,"",null,"",null,null,"",null,null,""]
[null,"Ime dijaka/študenta",null,"Priimek dijaka/študenta",null,null,"EMŠO dijaka/študenta",null,null,"Izobraževalni program"]
[]
[null,"",null,null,null,null,null,null,null,null,""]
[null,"Naziv delodajalca",null,null,null,null,null,null,null,null,"Matična št. delodajalca (oz. KMG-MID)"]
[]
[null," Število tednov PUD/PRI v letniku pri tem delodajalcu po pogodbi",null,null,null,null,null,"Skupaj število tednov \npri tem delodajalcu",null,null,"Skupaj predpisano št. tednov po programu v vseh letnikih"]
[null,"1. letnik",null,"2. letnik",null,"3. letnik"]
[null,{"$f":"ROUND(V59,1)","v":0},null,{"$f":"ROUND(W59,1)","v":0},null,{"$f":"ROUND(X59,1)","v":0},null,{"$f":"ROUND(B59,1)+ROUND(D59,1)+ROUND(F59,1)","v":0},null,null,{"$f":"ROUND(Y59,0)","v":0},null,null,null,null,null,null,null,null,null,null,0,0,0,0]
[]
[]
[null,"Podatki o dijaku oz. študentu št. ",null,null,null,null,{"$f":"TRUNC((ROW()-V$37)/12)+1","v":3}]
[null,"",null,"",null,null,"",null,null,""]
[null,"Ime dijaka/študenta",null,"Priimek dijaka/študenta",null,null,"EMŠO dijaka/študenta",null,null,"Izobraževalni program"]
[]
[null,"",null,null,null,null,null,null,null,null,""]
[null,"Naziv delodajalca",null,null,null,null,null,null,null,null,"Matična št. delodajalca (oz. KMG-MID)"]
[]
[null," Število tednov PUD/PRI v letniku pri tem delodajalcu po pogodbi",null,null,null,null,null,"Skupaj število tednov \npri tem delodajalcu",null,null,"Skupaj predpisano št. tednov po programu v vseh letnikih"]
[null,"1. letnik",null,"2. letnik",null,"3. letnik"]
[null,{"$f":"ROUND(V71,1)","v":0},null,{"$f":"ROUND(W71,1)","v":0},null,{"$f":"ROUND(X71,1)","v":0},null,{"$f":"ROUND(B71,1)+ROUND(D71,1)+ROUND(F71,1)","v":0},null,null,{"$f":"ROUND(Y71,0)","v":0},null,null,null,null,null,null,null,null,null,null,0,0,0,0]
[]
[]
[null,"Podatki o dijaku oz. študentu št. ",null,null,null,null,{"$f":"TRUNC((ROW()-V$37)/12)+1","v":4}]
[null,"",null,"",null,null,"",null,null,""]
[null,"Ime dijaka/študenta",null,"Priimek dijaka/študenta",null,null,"EMŠO dijaka/študenta",null,null,"Izobraževalni program"]
[]
[null,"",null,null,null,null,null,null,null,null,""]
[null,"Naziv delodajalca",null,null,null,null,null,null,null,null,"Matična št. delodajalca (oz. KMG-MID)"]
[]
[null," Število tednov PUD/PRI v letniku pri tem delodajalcu po pogodbi",null,null,null,null,null,"Skupaj število tednov \npri tem delodajalcu",null,null,"Skupaj predpisano št. tednov po programu v vseh letnikih"]
[null,"1. letnik",null,"2. letnik",null,"3. letnik"]
[null,{"$f":"ROUND(V83,1)","v":0},null,{"$f":"ROUND(W83,1)","v":0},null,{"$f":"ROUND(X83,1)","v":0},null,{"$f":"ROUND(B83,1)+ROUND(D83,1)+ROUND(F83,1)","v":0},null,null,{"$f":"ROUND(Y83,0)","v":0},null,null,null,null,null,null,null,null,null,null,0,0,0,0]
[]
[]
[null,"Podatki o dijaku oz. študentu št. ",null,null,null,null,{"$f":"TRUNC((ROW()-V$37)/12)+1","v":5}]
[null,"",null,"",null,null,"",null,null,""]
[null,"Ime dijaka/študenta",null,"Priimek dijaka/študenta",null,null,"EMŠO dijaka/študenta",null,null,"Izobraževalni program"]
[]
[null,"",null,null,null,null,null,null,null,null,""]
[null,"Naziv delodajalca",null,null,null,null,null,null,null,null,"Matična št. delodajalca (oz. KMG-MID)"]
[]
[null," Število tednov PUD/PRI v letniku pri tem delodajalcu po pogodbi",null,null,null,null,null,"Skupaj število tednov \npri tem delodajalcu",null,null,"Skupaj predpisano št. tednov po programu v vseh letnikih"]
[null,"1. letnik",null,"2. letnik",null,"3. letnik"]
[null,{"$f":"ROUND(V95,1)","v":0},null,{"$f":"ROUND(W95,1)","v":0},null,{"$f":"ROUND(X95,1)","v":0},null,{"$f":"ROUND(B95,1)+ROUND(D95,1)+ROUND(F95,1)","v":0},null,null,{"$f":"ROUND(Y95,0)","v":0},null,null,null,null,null,null,null,null,null,null,0,0,0,0]
[]
[]
[null,"Podatki o dijaku oz. študentu št. ",null,null,null,null,{"$f":"TRUNC((ROW()-V$37)/12)+1","v":6}]
[null,"",null,"",null,null,"",null,null,""]
[null,"Ime dijaka/študenta",null,"Priimek dijaka/študenta",null,null,"EMŠO dijaka/študenta",null,null,"Izobraževalni program"]
[]
[null,"",null,null,null,null,null,null,null,null,""]
[null,"Naziv delodajalca",null,null,null,null,null,null,null,null,"Matična št. delodajalca (oz. KMG-MID)"]
[]
[null," Število tednov PUD/PRI v letniku pri tem delodajalcu po pogodbi",null,null,null,null,null,"Skupaj število tednov \npri tem delodajalcu",null,null,"Skupaj predpisano št. tednov po programu v vseh letnikih"]
[null,"1. letnik",null,"2. letnik",null,"3. letnik"]
[null,{"$f":"ROUND(V107,1)","v":0},null,{"$f":"ROUND(W107,1)","v":0},null,{"$f":"ROUND(X107,1)","v":0},null,{"$f":"ROUND(B107,1)+ROUND(D107,1)+ROUND(F107,1)","v":0},null,null,{"$f":"ROUND(Y107,0)","v":0},null,null,null,null,null,null,null,null,null,null,0,0,0,0]
[]
[]
[null,"Podatki o dijaku oz. študentu št. ",null,null,null,null,{"$f":"TRUNC((ROW()-V$37)/12)+1","v":7}]
[null,"",null,"",null,null,"",null,null,""]
[null,"Ime dijaka/študenta",null,"Priimek dijaka/študenta",null,null,"EMŠO dijaka/študenta",null,null,"Izobraževalni program"]
[]
[null,"",null,null,null,null,null,null,null,null,""]
[null,"Naziv delodajalca",null,null,null,null,null,null,null,null,"Matična št. delodajalca (oz. KMG-MID)"]
[]
[null," Število tednov PUD/PRI v letniku pri tem delodajalcu po pogodbi",null,null,null,null,null,"Skupaj število tednov \npri tem delodajalcu",null,null,"Skupaj predpisano št. tednov po programu v vseh letnikih"]
[null,"1. letnik",null,"2. letnik",null,"3. letnik"]
[null,{"$f":"ROUND(V119,1)","v":0},null,{"$f":"ROUND(W119,1)","v":0},null,{"$f":"ROUND(X119,1)","v":0},null,{"$f":"ROUND(B119,1)+ROUND(D119,1)+ROUND(F119,1)","v":0},null,null,{"$f":"ROUND(Y119,0)","v":0},null,null,null,null,null,null,null,null,null,null,0,0,0,0]
[]
[]
[]
[{"$f":"'Prijavni obrazec za šolo'!A45","v":"3.2 IZJAVA ŠOLE O IZPOLNJEVANJU POGOJEV JAVNEGA RAZPISA"}]
[" "]
[{"$f":"'Prijavni obrazec za šolo'!A47:N47","v":"S podpisom in žigom na tej izjavi pod kazensko in materialno odgovornostjo izjavljamo, da:"}]
[]
[null,{"$f":"'Prijavni obrazec za šolo'!B49","v":"1. na dan oddaje vloge smo registrirani za opravljanje izobraževalne dejavnosti in izvajamo srednje poklicno oziroma višje strokovno izobraževanje;"}]
[null,{"$f":"'Prijavni obrazec za šolo'!B50","v":"2. na dan oddaje vloge nismo v postopku prisilne poravnave, stečajnem postopku ali likvidacijskem postopku po Zakonu o finančnem poslovanju, postopkih zaradi insolventnosti in prisilnem prenehanju (Uradni list RS, št. 126/07, 40/09, 59/09, 52/10, 106/10 - ORZFPPIPP21, 26/11, 47/11 - ORZFPPIPP21-1, 87/11 - ZPUOOD, 23/12 - odl. US, 48/12 - odl. US, 47/13, 100/13, 10/15 - popr., 27/16, 31/16 - odl. US, 38/16 - odl. US, 63/16 - ZD-C, 30/18 - ZPPDID, 54/18 - odl. US, 69/2019 - odl. US, 49/2020 - ZIUZEOP, 61/2020 - ZZUSUDJZ-A, 61/2020 - ZIUZEOP-A);"}]
[null,{"$f":"'Prijavni obrazec za šolo'!B51","v":"3. imamo po stanju na predzadnji delovni dan v mesecu pred mesecem oddaje vloge na javni razpis, poravnane vse zapadle davke, prispevke in druge obvezne dajatve skladno z nacionalno zakonodajo; "}]
[null,{"$f":"'Prijavni obrazec za šolo'!B52","v":"4. za stroške, ki so predmet tega javnega razpisa, nismo pridobili in nismo v postopku pridobivanja sofinanciranja istih stroškov iz drugih javnih virov, t.j. iz javnih finančnih sredstev evropskega, državnega ali občinskega proračuna;"}]
[null,{"$f":"'Prijavni obrazec za šolo'!B53","v":"5. delodajalec, pri katerem se dijak ali študent praktično usposablja z delom oziroma praktično izobražuje, in šola, kjer je isti dijak ali študent vpisan v zaključni letnik, sta dva različna poslovna subjekta; "}]
[null,{"$f":"'Prijavni obrazec za šolo'!B54","v":"6. za prijavljene osebe, za katere delodajalec izvede praktično usposabljanje z delom oziroma praktično izobraževanje, ni bilo dodeljeno sofinanciranje za isti izobraževalni program; "}]
[null,"7. dijaki in študenti, za katere delodajalec izvede praktično usposabljanje z delom oziroma praktično izobraževanje, so v šolskem oziroma študijskem letu 2019/2020 vpisani v zaključni letnik izobraževalnega programa, v okviru katerega opravljajo praktično usposabljanje z delom oziroma praktično izobraževanje; "]
[null,{"$f":"'Prijavni obrazec za šolo'!B56","v":"8. za namen tega javnega razpisa dovoljujemo Javnemu štipendijskemu, razvojnemu, invalidskemu in preživninskemu skladu Republike Slovenije pridobitev podatkov iz uradnih evidenc; "}]
[null,{"$f":"'Prijavni obrazec za šolo'!B57","v":"9. so vse navedbe, ki smo jih podali v tej vlogi, resnične in ustrezajo dejanskemu stanju. "}]
[]
[]
[]
[]
[{"$f":"TRIM(CLEAN('Prijavni obrazec za šolo'!A62))","v":""},null,null,null,null,null,null,null,{"$f":"'Prijavni obrazec za šolo'!E62","v":0}]
[{"$f":"'Prijavni obrazec za šolo'!A63","v":"Kraj"},null,null,null,null,null,{"$f":"'Prijavni obrazec za šolo'!C63","v":"ŽIG"},null,{"$f":"TRIM(CLEAN('Prijavni obrazec za šolo'!E63))","v":"Ime in priimek podpisnika"}]
[""]
[{"$f":"'Prijavni obrazec za šolo'!A65","v":"Datum"},null,null,null,null,null,null,null,{"$f":"'Prijavni obrazec za šolo'!E65","v":"Podpis"}]
[]
[{"$f":"'Prijavni obrazec za šolo'!A67","v":"3.3 IZJAVA ŠOLE O OBSEGU PRAKTIČNEGA IZOBRAŽEVANJA PRI IZREDNIH ŠTUDENTIH "}]
["        "]
[" "]
[{"$f":"'Prijavni obrazec za šolo'!A70","v":"S podpisom in žigom na tej izjavi pod kazensko in materialno odgovornostjo izjavljamo, da:"}]
[null,{"$f":"'Prijavni obrazec za šolo'!B71","v":"1. študentom, ki izredno študirajo, nismo skrajšali s študijskim programom določenega obsega praktičnega izobraževanja; "}]
[null,{"$f":"'Prijavni obrazec za šolo'!B72","v":"2. so vse navedbe, ki smo jih podali v tej vlogi, resnične in ustrezajo dejanskemu stanju. "}]
[]
[]
[]
[]
[]
[]
[]
[]
[]
[]
[{"$f":"TRIM(CLEAN('Prijavni obrazec za šolo'!A83))","v":""},null,null,null,null,null,null,null,{"$f":"TRIM(CLEAN('Prijavni obrazec za šolo'!E83))","v":""}]
[{"$f":"'Prijavni obrazec za šolo'!A84","v":"Kraj"},null,null,null,null,null,{"$f":"'Prijavni obrazec za šolo'!C84","v":"ŽIG"},null,{"$f":"'Prijavni obrazec za šolo'!E84","v":"Ime in priimek podpisnika"}]
[]
[{"$f":"'Prijavni obrazec za šolo'!A86","v":"Datum"},null,null,null,null,null,null,null,{"$f":"'Prijavni obrazec za šolo'!E86","v":"Podpis"}]
[]
[]
[]
[]
[{"$f":"'Prijavni obrazec za šolo'!A99","v":"OPREMA OVOJNICE "}]
[]
[{"$f":"'Prijavni obrazec za šolo'!A101:N101","v":"Vloga mora biti oddana v zaprti ovojnici. Oprema ovojnice mora vsebovati vidne oznake »NE ODPIRAJ - VLOGA - JAVNI RAZPIS PUD 2019/2020« ter naziv in naslov vlagatelja."}]
[" "]
[{"$f":"'Prijavni obrazec za šolo'!A103:N103","v":"Če prijavni obrazec izpolnite v elektronski obliki, se podatki za ovojnico sami prepišejo v okvir."}]
[" "]
[{"$f":"'Prijavni obrazec za šolo'!A105:N105","v":"Izrežite okvir po zunanjem robu in ga prilepite na sprednjo stran ovojnice."}]
[]
[]
[]
[]
[" "]
[null,null,{"$f":"CONCATENATE(\"Pošiljatelj (naziv in naslov vlagatelja): \n\",TRIM(CLEAN(LEFT('Prijavni obrazec za šolo'!A6,100))),\"\n\",TRIM(CLEAN(LEFT('Prijavni obrazec za šolo'!A8,70))),\"\n\",TRIM(CLEAN(LEFT('Prijavni obrazec za šolo'!A10,10))),\" \",TRIM(CLEAN(LEFT('Prijavni obrazec za šolo'!C10,50))))","v":"Pošiljatelj (naziv in naslov vlagatelja): \n\n\n "}]
[]
[]
[]
[]
[]
[]
[]
[null,null,{"$f":"'Prijavni obrazec za šolo'!B119","v":"NE ODPIRAJ -"}]
[null,null,{"$f":"'Prijavni obrazec za šolo'!B120","v":"VLOGA -"}]
[null,null,{"$f":"'Prijavni obrazec za šolo'!B121","v":"JAVNI RAZPIS PUD 2019/2020"}]
[]
[]
[null,null,null,null,null,null,null,"Naslovnik: \nJavni štipendijski, razvojni, invalidski in \npreživninski sklad Republike Slovenije\nDunajska cesta 20\n1000 Ljubljana"]